fUST/lending_fUST_20241111
["ID","MTS","AMOUNT","RATE_DAILY","PERIOD"]
[341931692,1731310233245,-150.20640634,0.00022,3]
[341931693,1731310233255,-2180.6061883,0.0002266,2]
[341931694,1731310233264,-160.876194,0.00022759,2]
[341931695,1731310233273,-200.0,0.0002304,10]
[341931696,1731310233283,-1317.59813776,0.00023099,2]
[341931697,1731310233292,-300.0,0.00023099,2]
[341931698,1731310233301,-300.0,0.00023099,2]
[341931699,1731310233310,-30621.36194461,0.000231,2]
[341931700,1731310233319,-14431.55114038,0.000231,2]
[341931701,1731310233329,-2000.709963,0.000231,2]
[341931702,1731310233338,-515.0,0.000231,2]
[341931703,1731310233346,-150.641,0.00023333,2]
[341931704,1731310233355,-538.845,0.00023333,2]
[341931705,1731310233365,-1127.0,0.00023333,2]
[341931706,1731310233374,-2391.0,0.00023333,2]
[341931707,1731310233383,-182.396,0.00023333,2]
[341931708,1731310233393,-150.742,0.00023488,2]
[341931709,1731310233402,-150.427,0.00023488,2]
[341931710,1731310233412,-150.215,0.00023488,2]
[341931711,1731310233421,-150.0,0.00023488,2]
[341931712,1731310233432,-150.0,0.00023488,2]
[341931713,1731310233441,-1000.0,0.000238,2]
[341931714,1731310233450,-500.0,0.00023835,2]
[341931715,1731310233459,-500.0,0.00023835,2]
[341931716,1731310233468,-516.60705813,0.00023835,2]
[341931717,1731310233477,-200.0,0.00024,24]
[341931718,1731310233486,-5271.0,0.00024,2]
[341931719,1731310233495,-3183.57674958,0.00024052,2]
[341931720,1731310233505,-6851.0,0.00024079,4]
[341931721,1731310233514,-4482.64453728,0.00024088,2]
[341931722,1731310233523,-1181.30802421,0.000241,2]
[341931723,1731310233532,-151.0,0.0002415,7]
[341931724,1731310233541,-279.482844,0.0002415,7]
[341931725,1731310233551,-1000.0,0.0002415,2]
[341931726,1731310233560,-681.64914367,0.00024152,2]
[341931727,1731310233569,-151.0,0.00024152,7]
[341931728,1731310233578,-180.32798,0.00024152,7]
[341931729,1731310233587,-180.32798,0.00024152,7]
[341931730,1731310233596,-151.0,0.00024152,7]
[341931731,1731310233605,-151.0,0.00024152,7]
[341931732,1731310233615,-151.0,0.00024152,2]
[341931733,1731310233624,-151.0,0.00024152,2]
[341931734,1731310233633,-151.0,0.00024152,7]
[341931735,1731310233642,-151.0,0.00024152,7]
[341931736,1731310233651,-151.0,0.00024152,7]
[341931737,1731310233660,-151.0,0.00024152,7]
[341931738,1731310233669,-273.349931,0.00024152,7]
[341931739,1731310233679,-151.0,0.00024152,7]
[341931740,1731310233688,-154.889214,0.00024152,7]
[341931741,1731310233697,-152.144106,0.00024152,7]
[341931742,1731310233707,-151.0,0.00024152,7]
[341931743,1731310233716,-151.0,0.00024152,7]
[341931744,1731310233725,-151.0,0.00024152,7]
[341931745,1731310233734,-151.0,0.00024152,7]
[341931746,1731310233743,-151.0,0.00024152,7]
[341931747,1731310233753,-151.0,0.00024152,7]
[341931748,1731310233762,-151.0,0.00024152,7]
[341931749,1731310233771,-151.0,0.00024152,7]
[341931750,1731310233780,-152.759871,0.00024152,7]
[341931751,1731310233790,-151.964096,0.00024152,7]
[341931752,1731310233799,-152.197028,0.00024152,7]
[341931753,1731310233808,-151.0,0.00024152,7]
[341931754,1731310233818,-151.0,0.00024152,7]
[341931755,1731310233828,-153.527983,0.00024152,7]
[341931756,1731310233837,-151.0,0.00024152,7]
[341931757,1731310233846,-162.51509,0.00024152,7]
[341931758,1731310233856,-151.0,0.00024152,7]
[341931759,1731310233865,-151.0,0.00024152,7]
[341931760,1731310233874,-151.448535,0.00024152,7]
[341931761,1731310233883,-151.0,0.00024152,7]
[341931762,1731310233892,-151.0,0.00024152,7]
[341931763,1731310233902,-298.442976,0.00024152,7]
[341931764,1731310233911,-298.442976,0.00024152,7]
[341931765,1731310233921,-151.0,0.00024152,7]
[341931766,1731310233931,-151.0,0.00024152,7]
[341931767,1731310233940,-298.442976,0.00024152,7]
[341931768,1731310233949,-298.442976,0.00024152,7]
[341931769,1731310233959,-151.0,0.00024152,7]
[341931770,1731310233968,-151.0,0.00024152,7]
[341931771,1731310233977,-151.0,0.00024152,7]
[341931772,1731310233987,-151.0,0.00024152,7]
[341931773,1731310233996,-151.0,0.00024152,7]
[341931774,1731310234005,-152.699762,0.00024152,7]
[341931775,1731310234014,-151.0,0.00024152,7]
[341931776,1731310234023,-151.0,0.00024152,7]
[341931777,1731310234032,-151.0,0.00024152,7]
[341931778,1731310234041,-151.333075,0.00024152,7]
[341931779,1731310234050,-154.606299,0.00024152,7]
[341931780,1731310234063,-151.0,0.00024152,7]
[341931781,1731310234073,-151.0,0.00024152,7]
[341931782,1731310234082,-151.0,0.00024152,7]
[341931783,1731310234091,-151.0,0.00024152,7]
[341931784,1731310234102,-151.0,0.00024152,7]
[341931785,1731310234111,-151.0,0.00024152,7]
[341931786,1731310234121,-663.149226,0.00024152,7]
[341931787,1731310234243,-663.149226,0.00024152,7]
[341931788,1731310234256,-151.0,0.00024152,7]
[341931789,1731310234266,-151.0,0.00024152,7]
[341931790,1731310234275,-663.149226,0.00024152,7]
[341931791,1731310234284,-663.149226,0.00024152,7]
[341931792,1731310234294,-151.0,0.00024152,7]
[341931793,1731310234303,-153.560132,0.00024152,7]
[341931794,1731310234312,-151.0,0.00024152,7]
[341931795,1731310234321,-151.0,0.00024152,7]
[341931796,1731310234330,-151.0,0.00024152,7]
[341931797,1731310234339,-151.0,0.00024152,7]
[341931798,1731310234348,-151.0,0.00024152,7]
[341931799,1731310234357,-151.0,0.00024152,7]
[341931800,1731310234367,-287.378212,0.00024152,7]
[341931801,1731310234376,-181.527558,0.00024152,7]
[341931802,1731310234386,-181.527558,0.00024152,7]
[341931803,1731310234395,-181.527558,0.00024152,7]
[341931804,1731310234405,-181.527558,0.00024152,7]
[341931805,1731310234415,-151.0,0.00024152,7]
[341931806,1731310234424,-151.0,0.00024152,7]
[341931807,1731310234437,-197.55366,0.00024152,7]
[341931808,1731310234447,-197.55366,0.00024152,7]
[341931809,1731310234457,-197.55366,0.00024152,7]
[341931810,1731310234466,-197.55366,0.00024152,7]
[341931811,1731310234476,-151.539436,0.00024152,7]
[341931812,1731310234486,-291.596987,0.00024152,7]
[341931813,1731310234497,-151.0,0.00024152,7]
[341931814,1731310234507,-151.0,0.00024152,7]
[341931815,1731310234517,-151.0,0.00024152,7]
[341931816,1731310234526,-212.577135,0.00024152,7]
[341931817,1731310234535,-664.10868,0.00024152,7]
[341931818,1731310234545,-664.10868,0.00024152,7]
[341931819,1731310234554,-664.10868,0.00024152,7]
[341931820,1731310234564,-664.10868,0.00024152,7]
[341931821,1731310234573,-211.599114,0.00024152,7]
[341931822,1731310234583,-211.599114,0.00024152,7]
[341931823,1731310234593,-30983.07159176,0.00024152,2]
[341931824,1731310234602,-151.0,0.0002418,7]
[341931825,1731310234611,-151.0,0.0002418,7]
[341931826,1731310234620,-151.0,0.0002418,7]
[341931827,1731310234630,-152.519812,0.0002418,7]
[341931828,1731310234639,-151.0,0.0002418,7]
[341931829,1731310234648,-1559.45177524,0.00024188,2]
[341931830,1731310234658,-152.137239,0.0002419,7]
[341931831,1731310234667,-151.0,0.0002419,7]
[341931832,1731310234680,-151.0,0.0002419,7]
[341931833,1731310234689,-151.0,0.0002419,7]
[341931834,1731310234699,-151.626057,0.0002419,3]
[341931835,1731310234708,-151.0,0.0002419,7]
[341931836,1731310234717,-151.0,0.0002419,7]
[341931837,1731310234726,-151.0,0.0002419,7]
[341931838,1731310234735,-151.0,0.0002419,7]
[341931839,1731310234744,-153.087515,0.0002419,7]
[341931840,1731310234754,-151.0,0.0002419,7]
[341931841,1731310234763,-151.0,0.0002419,7]
[341931842,1731310234772,-151.0,0.0002419,7]
[341931843,1731310234782,-151.0,0.0002419,7]
[341931844,1731310234791,-183.515576,0.0002419,7]
[341931845,1731310234800,-151.0,0.0002419,7]
[341931846,1731310234810,-154.277964,0.0002419,7]
[341931847,1731310234819,-151.0,0.0002419,7]
[341931848,1731310234829,-151.0,0.0002419,7]
[341931849,1731310234838,-180.32798,0.0002419,7]
[341931850,1731310234847,-180.32798,0.0002419,7]
[341931851,1731310234856,-180.32798,0.0002419,7]
[341931852,1731310234866,-180.32798,0.0002419,7]
[341931853,1731310234875,-180.32798,0.0002419,7]
[341931854,1731310234884,-180.32798,0.0002419,7]
[341931855,1731310234894,-180.32798,0.0002419,7]
[341931856,1731310234903,-180.32798,0.0002419,7]
[341931857,1731310234912,-151.0,0.0002419,7]
[341931858,1731310234921,-151.0,0.0002419,7]
[341931859,1731310234931,-153.422918,0.0002419,7]
[341931860,1731310234941,-151.0,0.0002419,7]
[341931861,1731310234950,-151.0,0.0002419,7]
[341931862,1731310234960,-153.876729,0.0002419,7]
[341931863,1731310234969,-151.0,0.0002419,2]
[341931864,1731310234978,-151.0,0.0002419,2]
[341931865,1731310234988,-151.0,0.0002419,2]
[341931866,1731310234997,-151.0,0.0002419,2]
[341931867,1731310235007,-151.0,0.0002419,2]
[341931868,1731310235016,-151.0,0.0002419,2]
[341931869,1731310235025,-151.0,0.0002419,2]
[341931870,1731310235035,-151.0,0.0002419,2]
[341931871,1731310235044,-151.0,0.0002419,7]
[341931872,1731310235053,-151.0,0.0002419,7]
[341931873,1731310235065,-151.0,0.0002419,7]
[341931874,1731310235075,-151.0,0.0002419,7]
[341931875,1731310235084,-151.0,0.0002419,7]
[341931876,1731310235094,-151.0,0.0002419,7]
[341931877,1731310235103,-151.0,0.0002419,7]
[341931878,1731310235112,-151.0,0.0002419,7]
[341931879,1731310235121,-251.257075,0.0002419,7]
[341931880,1731310235132,-151.0,0.0002419,7]
[341931881,1731310235141,-151.0,0.0002419,7]
[341931882,1731310235150,-151.0,0.0002419,7]
[341931883,1731310235159,-151.0,0.0002419,7]
[341931884,1731310235168,-151.0,0.0002419,7]
[341931885,1731310235178,-151.0,0.0002419,7]
[341931886,1731310235187,-154.239384,0.0002419,7]
[341931887,1731310235197,-151.0,0.0002419,7]
[341931888,1731310235206,-151.0,0.0002419,7]
[341931889,1731310235215,-167.522239,0.0002419,7]
[341931890,1731310235225,-154.889214,0.0002419,7]
[341931891,1731310235235,-154.889214,0.0002419,7]
[341931892,1731310235244,-154.889214,0.0002419,7]
[341931893,1731310235254,-154.889214,0.0002419,7]
[341931894,1731310235263,-154.889214,0.0002419,7]
[341931895,1731310235272,-154.889214,0.0002419,7]
[341931896,1731310235281,-154.889214,0.0002419,7]
[341931897,1731310235291,-151.0,0.0002419,7]
[341931898,1731310235300,-151.0,0.0002419,7]
[341931899,1731310235310,-151.0,0.0002419,7]
[341931900,1731310235319,-151.0,0.0002419,7]
[341931901,1731310235328,-276.970464,0.0002419,7]
[341931902,1731310235338,-151.0,0.0002419,7]
[341931903,1731310235347,-153.306675,0.0002419,7]
[341931904,1731310235357,-151.0,0.0002419,7]
[341931905,1731310235366,-151.0,0.0002419,7]
[341931906,1731310235375,-151.0,0.0002419,7]
[341931907,1731310235385,-151.0,0.0002419,7]
[341931908,1731310235394,-151.0,0.0002419,7]
[341931909,1731310235403,-151.0,0.0002419,7]
[341931910,1731310235412,-151.0,0.0002419,7]
[341931911,1731310235422,-151.0,0.0002419,7]
[341931912,1731310235432,-279.918308,0.0002419,7]
[341931913,1731310235442,-151.0,0.0002419,7]
[341931914,1731310235451,-151.0,0.0002419,7]
[341931915,1731310235460,-151.0,0.0002419,7]
[341931916,1731310235469,-151.0,0.0002419,7]
[341931917,1731310235478,-151.0,0.0002419,7]
[341931918,1731310235488,-151.0,0.0002419,7]
[341931919,1731310235497,-151.0,0.0002419,7]
[341931920,1731310235506,-151.0,0.0002419,7]
[341931921,1731310235515,-151.0,0.0002419,7]
[341931922,1731310235525,-151.0,0.0002419,7]
[341931923,1731310235534,-151.0,0.0002419,7]
[341931924,1731310235545,-151.0,0.0002419,7]
[341931925,1731310235554,-151.0,0.0002419,7]
[341931926,1731310235563,-151.0,0.0002419,7]
[341931927,1731310235572,-151.0,0.0002419,7]
[341931928,1731310235581,-260.33886,0.0002419,7]
[341931929,1731310235590,-151.0,0.0002419,7]
[341931930,1731310235599,-153.041273,0.0002419,7]
[341931931,1731310235609,-298.442976,0.0002419,7]
[341931932,1731310235619,-298.442976,0.0002419,7]
[341931933,1731310235628,-298.442976,0.0002419,7]
[341931934,1731310235637,-298.442976,0.0002419,7]
[341931935,1731310235647,-298.442976,0.0002419,7]
[341931936,1731310235656,-151.0,0.0002419,7]
[341931937,1731310235665,-151.0,0.0002419,7]
[341931938,1731310235675,-151.0,0.0002419,7]
[341931939,1731310235686,-151.0,0.0002419,7]
[341931940,1731310235695,-151.0,0.0002419,7]
[341931941,1731310235704,-151.0,0.0002419,7]
[341931942,1731310235713,-298.442976,0.0002419,7]
[341931943,1731310235722,-298.442976,0.0002419,7]
[341931944,1731310235731,-298.442976,0.0002419,7]
[341931945,1731310235740,-298.442976,0.0002419,7]
[341931946,1731310235750,-151.0,0.0002419,7]
[341931947,1731310235759,-298.442976,0.0002419,7]
[341931948,1731310235768,-151.0,0.0002419,7]
[341931949,1731310235779,-151.0,0.0002419,7]
[341931950,1731310235787,-151.0,0.0002419,7]
[341931951,1731310235797,-151.0,0.0002419,7]
[341931952,1731310235806,-214.190592,0.0002419,7]
[341931953,1731310235815,-152.903665,0.0002419,7]
[341931954,1731310235824,-151.0,0.0002419,7]
[341931955,1731310235833,-151.0,0.0002419,7]
[341931956,1731310235842,-212.835236,0.0002419,7]
[341931957,1731310235851,-151.0,0.0002419,7]
[341931958,1731310235861,-151.0,0.0002419,7]
[341931959,1731310235870,-151.0,0.0002419,7]
[341931960,1731310235879,-151.0,0.0002419,7]
[341931961,1731310235889,-151.0,0.0002419,7]
[341931962,1731310235898,-151.0,0.0002419,7]
[341931963,1731310235907,-151.0,0.0002419,7]
[341931964,1731310235916,-151.0,0.0002419,7]
[341931965,1731310235925,-151.0,0.0002419,7]
[341931966,1731310235937,-192.443362,0.0002419,7]
[341931967,1731310235946,-151.0,0.0002419,7]
[341931968,1731310235955,-663.149226,0.0002419,7]
[341931969,1731310235964,-663.149226,0.0002419,7]
[341931970,1731310235973,-663.149226,0.0002419,7]
[341931971,1731310235983,-151.0,0.0002419,7]
[341931972,1731310235992,-663.149226,0.0002419,7]
[341931973,1731310236001,-155.51398,0.0002419,7]
[341931974,1731310236011,-663.149226,0.0002419,7]
[341931975,1731310236020,-663.149226,0.0002419,7]
[341931976,1731310236029,-663.149226,0.0002419,7]
[341931977,1731310236038,-663.149226,0.0002419,7]
[341931978,1731310236047,-663.149226,0.0002419,7]
[341931979,1731310236057,-663.149226,0.0002419,7]
[341931980,1731310236068,-151.0,0.0002419,7]
[341931981,1731310236077,-151.0,0.0002419,7]
[341931982,1731310236086,-151.0,0.0002419,7]
[341931983,1731310236095,-151.0,0.0002419,7]
[341931984,1731310236105,-151.0,0.0002419,7]
[341931985,1731310236114,-151.0,0.0002419,7]
[341931986,1731310236123,-151.0,0.0002419,7]
[341931987,1731310236135,-151.0,0.0002419,7]
[341931988,1731310236144,-151.0,0.0002419,7]
[341931989,1731310236153,-151.0,0.0002419,7]
[341931990,1731310236162,-151.0,0.0002419,7]
[341931991,1731310236171,-151.0,0.0002419,7]
[341931992,1731310236184,-151.0,0.0002419,7]
[341931993,1731310236196,-151.0,0.0002419,7]
[341931994,1731310236205,-265.406174,0.0002419,7]
[341931995,1731310236214,-181.527558,0.0002419,7]
[341931996,1731310236223,-181.527558,0.0002419,7]
[341931997,1731310236233,-181.527558,0.0002419,7]
[341931998,1731310236242,-181.527558,0.0002419,7]
[341931999,1731310236251,-181.527558,0.0002419,7]
[341932000,1731310236261,-181.527558,0.0002419,7]
[341932001,1731310236270,-181.527558,0.0002419,7]
[341932002,1731310236279,-181.527558,0.0002419,7]
[341932003,1731310236288,-181.527558,0.0002419,7]
[341932004,1731310236298,-181.527558,0.0002419,7]
[341932005,1731310236307,-151.0,0.0002419,7]
[341932006,1731310236317,-151.0,0.0002419,7]
[341932007,1731310236326,-151.0,0.0002419,7]
[341932008,1731310236335,-151.0,0.0002419,7]
[341932009,1731310236435,-151.0,0.0002419,7]
[341932010,1731310236455,-151.0,0.0002419,7]
[341932011,1731310236464,-197.55366,0.0002419,7]
[341932012,1731310236473,-197.55366,0.0002419,7]
[341932013,1731310236482,-197.55366,0.0002419,7]
[341932014,1731310236491,-197.55366,0.0002419,7]
[341932015,1731310236500,-197.55366,0.0002419,7]
[341932016,1731310236509,-197.55366,0.0002419,7]
[341932017,1731310236518,-197.55366,0.0002419,7]
[341932018,1731310236527,-197.55366,0.0002419,7]
[341932019,1731310236535,-197.55366,0.0002419,7]
[341932020,1731310236544,-197.55366,0.0002419,7]
[341932021,1731310236553,-151.0,0.0002419,7]
[341932022,1731310236562,-151.0,0.0002419,7]
[341932023,1731310236571,-151.0,0.0002419,7]
[341932024,1731310236580,-151.0,0.0002419,7]
[341932025,1731310236589,-151.0,0.0002419,7]
[341932026,1731310236598,-151.0,0.0002419,7]
[341932027,1731310236607,-664.10868,0.0002419,7]
[341932028,1731310236616,-664.10868,0.0002419,7]
[341932029,1731310236624,-664.10868,0.0002419,7]
[341932030,1731310236633,-664.10868,0.0002419,7]
[341932031,1731310236642,-664.10868,0.0002419,7]
[341932032,1731310236651,-664.10868,0.0002419,7]
[341932033,1731310236660,-664.10868,0.0002419,7]
[341932034,1731310236669,-664.10868,0.0002419,7]
[341932035,1731310236681,-664.10868,0.0002419,7]
[341932036,1731310236690,-664.10868,0.0002419,7]
[341932037,1731310236699,-1000.0,0.000242,3]
[341932038,1731310236709,-180.32798,0.000242,7]
[341932039,1731310236718,-180.32798,0.000242,7]
[341932040,1731310236728,-151.0,0.000242,2]
[341932041,1731310236737,-151.0,0.000242,2]
[341932042,1731310236746,-151.0,0.000242,7]
[341932043,1731310236756,-151.0,0.000242,7]
[341932044,1731310236765,-154.889214,0.000242,7]
[341932045,1731310236774,-154.889214,0.000242,7]
[341932046,1731310236784,-680.791528,0.000242,7]
[341932047,1731310236793,-151.0,0.000242,7]
[341932048,1731310236802,-151.0,0.000242,7]
[341932049,1731310236811,-3000.0,0.000242,2]
[341932050,1731310236820,-151.0,0.000242,7]
[341932051,1731310236829,-3000.0,0.000242,2]
[341932052,1731310236838,-151.0,0.000242,7]
[341932053,1731310236847,-298.442976,0.000242,7]
[341932054,1731310236856,-298.442976,0.000242,7]
[341932055,1731310236865,-151.0,0.000242,7]
[341932056,1731310236874,-298.442976,0.000242,7]
[341932057,1731310236883,-298.442976,0.000242,7]
[341932058,1731310236892,-151.0,0.000242,7]
[341932059,1731310236901,-151.0,0.000242,7]
[341932060,1731310236911,-151.0,0.000242,7]
[341932061,1731310236919,-151.0,0.000242,7]
[341932062,1731310236931,-151.0,0.000242,7]
[341932063,1731310236940,-663.149226,0.000242,7]
[341932064,1731310236949,-663.149226,0.000242,7]
[341932065,1731310236959,-663.149226,0.000242,7]
[341932066,1731310236968,-663.149226,0.000242,7]
[341932067,1731310236977,-247.005838,0.000242,7]
[341932068,1731310236986,-151.0,0.000242,7]
[341932069,1731310236995,-151.0,0.000242,7]
[341932070,1731310237004,-181.527558,0.000242,7]
[341932071,1731310237013,-181.527558,0.000242,7]
[341932072,1731310237022,-181.527558,0.000242,7]
[341932073,1731310237031,-181.527558,0.000242,7]
[341932074,1731310237040,-197.55366,0.000242,7]
[341932075,1731310237048,-197.55366,0.000242,7]
[341932076,1731310237059,-197.55366,0.000242,7]
[341932077,1731310237069,-197.55366,0.000242,7]
[341932078,1731310237078,-151.0,0.000242,7]
[341932079,1731310237086,-664.10868,0.000242,7]
[341932080,1731310237095,-664.10868,0.000242,7]
[341932081,1731310237106,-664.10868,0.000242,7]
[341932082,1731310237117,-154.889214,0.0002421,7]
[341932083,1731310237126,-154.889214,0.0002421,7]
[341932084,1731310237135,-522.868877,0.0002421,7]
[341932085,1731310237146,-3000.0,0.0002421,2]
[341932086,1731310237156,-218.185459,0.0002421,7]
[341932087,1731310237165,-3000.0,0.0002421,2]
[341932088,1731310237174,-298.442976,0.0002421,7]
[341932089,1731310237186,-170.589921,0.0002421,7]
[341932090,1731310237195,-298.442973,0.0002421,7]
[341932091,1731310237204,-151.0,0.0002421,7]
[341932092,1731310237213,-151.0,0.0002421,7]
[341932093,1731310237222,-151.0,0.0002421,7]
[341932094,1731310237231,-663.149226,0.0002421,7]
[341932095,1731310237240,-663.149217,0.0002421,7]
[341932096,1731310237249,-151.0,0.0002421,7]
[341932097,1731310237259,-181.527558,0.0002421,7]
[341932099,1731310237267,-181.527565,0.0002421,7]
[341932100,1731310237276,-197.55366,0.0002421,7]
[341932101,1731310237286,-197.553656,0.0002421,7]
[341932102,1731310237295,-151.0,0.0002421,7]
[341932103,1731310237304,-664.10868,0.0002421,7]
[341932104,1731310237314,-1181.30802419,0.00024214,2]
[341932105,1731310237323,-153.0,0.00024216,2]
[341932106,1731310237332,-153.0,0.00024216,2]
[341932107,1731310237341,-153.0,0.00024216,2]
[341932108,1731310237350,-153.0,0.00024216,2]
[341932109,1731310237359,-153.0,0.00024216,2]
[341932110,1731310237368,-153.0,0.00024216,2]
[341932111,1731310237378,-153.0,0.00024216,2]
[341932112,1731310237387,-153.0,0.00024216,2]
[341932113,1731310237396,-180.32798,0.0002422,7]
[341932114,1731310237405,-180.32798,0.0002422,7]
[341932115,1731310237415,-151.0,0.0002422,2]
[341932116,1731310237424,-187.780693,0.0002422,2]
[341932117,1731310237437,-151.0,0.0002422,7]
[341932118,1731310237446,-151.0,0.0002422,7]
[341932119,1731310237455,-154.889214,0.0002422,7]
[341932120,1731310237464,-154.889214,0.0002422,7]
[341932121,1731310237474,-680.791528,0.0002422,7]
[341932122,1731310237484,-151.0,0.0002422,7]
[341932123,1731310237492,-522.868877,0.0002422,7]
[341932124,1731310237502,-3000.0,0.0002422,2]
[341932125,1731310237511,-3000.0,0.0002422,2]
[341932126,1731310237520,-232.240092,0.0002423,7]
[341932127,1731310237529,-151.0,0.0002423,7]
[341932128,1731310237538,-154.889214,0.0002423,7]
[341932129,1731310237548,-154.889222,0.0002423,7]
[341932130,1731310237557,-680.791528,0.0002423,7]
[341932131,1731310237567,-522.868876,0.0002423,7]
[341932132,1731310237576,-3000.0,0.0002423,2]
[341932133,1731310237585,-3000.0,0.0002423,2]
[341932134,1731310237595,-180.32798,0.0002424,7]
[341932135,1731310237604,-180.32798,0.0002424,7]
[341932136,1731310237614,-151.0,0.0002424,2]
[341932137,1731310237623,-3000.0,0.0002424,2]
[341932138,1731310237632,-3000.0,0.0002424,2]
[341932139,1731310237642,-279.960561,0.0002425,7]
[341932140,1731310237651,-151.0,0.0002425,7]
[341932142,1731310237660,-151.0,0.0002425,7]
[341932144,1731310237669,-180.32798,0.0002425,7]
[341932147,1731310237682,-180.32798,0.0002425,7]
[341932149,1731310237692,-180.32798,0.0002425,7]
[341932150,1731310237701,-180.327988,0.0002425,7]
[341932152,1731310237711,-151.0,0.0002425,2]
[341932155,1731310237720,-151.0,0.0002425,2]
[341932157,1731310237730,-151.0,0.0002425,7]
[341932159,1731310237740,-151.0,0.0002425,7]
[341932161,1731310237750,-680.791528,0.0002425,7]
[341932163,1731310237759,-680.7915284,0.0002425,7]
[341932165,1731310237769,-3000.0,0.0002425,2]
[341932167,1731310237778,-3000.0,0.0002425,2]
[341932169,1731310237787,-151.0,0.00024252,7]
[341932171,1731310237797,-3000.0,0.0002426,2]
[341932173,1731310237805,-3000.0,0.0002426,2]
[341932175,1731310237815,-151.0,0.00024268,7]
[341932177,1731310237824,-154.437908,0.00024269,7]
[341932179,1731310237833,-165.137819,0.00024269,7]
[341932181,1731310237843,-3000.0,0.0002427,2]
[341932183,1731310237852,-3000.0,0.0002427,2]
[341932185,1731310237862,-3000.0,0.0002428,2]
[341932187,1731310237871,-3000.0,0.0002428,2]
[341932189,1731310237880,-3000.0,0.0002429,2]
[341932191,1731310237889,-3000.0,0.0002429,2]
[341932193,1731310237898,-3000.0,0.000243,2]
[341932195,1731310237908,-3000.0,0.000243,2]
[341932197,1731310237917,-3000.0,0.0002431,2]
[341932199,1731310237927,-3000.0,0.0002431,2]
[341932201,1731310237939,-3000.0,0.0002432,2]
[341932203,1731310237948,-3000.0,0.0002432,2]
[341932205,1731310237957,-1181.30802419,0.00024329,2]
[341932207,1731310237966,-3000.0,0.0002433,2]
[341932209,1731310237975,-3000.0,0.0002433,2]
[341932211,1731310237984,-3000.0,0.0002434,2]
[341932213,1731310237993,-3000.0,0.0002434,2]
[341932215,1731310238003,-3000.0,0.0002435,2]
[341932217,1731310238012,-3000.0,0.0002435,2]
[341932220,1731310238022,-3000.0,0.0002436,2]
[341932222,1731310238032,-3000.0,0.0002436,2]
[341932224,1731310238041,-3000.0,0.0002437,2]
[341932226,1731310238051,-3000.0,0.0002437,2]
[341932228,1731310238067,-3000.0,0.0002438,2]
[341932230,1731310238076,-3000.0,0.0002438,2]
[341932232,1731310238085,-3000.0,0.0002439,2]
[341932234,1731310238095,-3000.0,0.0002439,2]
[341932236,1731310238105,-186.5,0.000244,2]
[341932237,1731310238115,-513.0,0.000244,2]
[341932238,1731310238125,-3000.0,0.000244,2]
[341932239,1731310238135,-3000.0,0.000244,2]
[341932240,1731310238145,-150.112233,0.000244,7]
[341932241,1731310238154,-157.52135,0.000244,9]